[Event "4. Memorial Svat.Hastika OPEN"]
[Site "Jesenik, Czech Republic"]
[Date "2022.09.03"]
[Round "3.4"]
[White "Cempel, Jaroslav"]
[Black "Banasik, Krzysztof"]
[Result "0-1"]
[TimeControl "720+3"]
[WhiteFideId "300730"]
[BlackFideId "1125222"]
[WhiteElo "1911"]
[BlackElo "2166"]

1. d4 {[%clk 00:12:03]} {[%emt 00:08:35]} Nf6 {[%clk 00:12:05]} {[%emt
00:00:02]} 2. Bf4 {[%clk 00:12:04]} {[%emt 00:00:03]} g6 {[%clk 00:12:06]}
{[%emt 00:00:03]} 3. Nc3 {[%clk 00:12:06]} d5 {[%clk 00:12:08]} {[%emt
00:00:02]} 4. e3 {[%clk 00:12:07]} {[%emt 00:00:02]} Bg7 {[%clk 00:12:09]}
{[%emt 00:00:02]} 5. h3 {[%clk 00:12:08]} {[%emt 00:00:02]} O-O {[%clk
00:12:07]} {[%emt 00:00:05]} 6. Nf3 {[%clk 00:12:11]} c5 {[%clk 00:12:06]}
{[%emt 00:00:04]} 7. Be2 {[%clk 00:12:07]} {[%emt 00:00:07]} Nc6 {[%clk
00:12:06]} {[%emt 00:00:04]} 8. O-O {[%clk 00:12:06]} {[%emt 00:00:04]} cxd4
{[%clk 00:11:59]} {[%emt 00:00:11]} 9. exd4 {[%clk 00:12:05]} {[%emt 00:00:03]}
Bf5 {[%clk 00:11:57]} {[%emt 00:00:05]} 10. Ne5 {[%clk 00:11:58]} {[%emt
00:00:10]} Rc8 {[%clk 00:11:54]} {[%emt 00:00:07]} 11. Nxc6 {[%clk 00:11:50]}
{[%emt 00:00:10]} Rxc6 {[%clk 00:11:35]} {[%emt 00:00:22]} 12. Be5 {[%clk
00:11:27]} {[%emt 00:00:25]} a6 {[%clk 00:10:58]} {[%emt 00:00:41]} 13. a4
{[%clk 00:10:51]} {[%emt 00:00:39]} Qa5 {[%clk 00:10:22]} {[%emt 00:00:40]} 14.
Bd3 {[%clk 00:09:43]} {[%emt 00:01:11]} Bxd3 {[%clk 00:09:49]} {[%emt
00:00:36]} 15. Qxd3 {[%clk 00:09:31]} {[%emt 00:00:15]} e6 {[%clk 00:09:48]}
{[%emt 00:00:04]} 16. Bxf6 {[%clk 00:08:35]} {[%emt 00:00:58]} Bxf6 {[%clk
00:09:49]} {[%emt 00:00:02]} 17. Ne2 {[%clk 00:08:33]} {[%emt 00:00:05]} b5
{[%clk 00:08:52]} {[%emt 00:01:01]} 18. axb5 {[%clk 00:08:07]} {[%emt
00:00:29]} Qxb5 {[%clk 00:08:53]} {[%emt 00:00:02]} 19. Qxb5 {[%clk 00:07:33]}
{[%emt 00:00:37]} axb5 {[%clk 00:08:54]} {[%emt 00:00:02]} 20. c3 {[%clk
00:07:33]} {[%emt 00:00:02]} b4 {[%clk 00:08:52]} {[%emt 00:00:06]} 21. Rfc1
{[%clk 00:06:13]} {[%emt 00:01:23]} Rb8 {[%clk 00:07:59]} {[%emt 00:00:57]} 22.
Rab1 {[%clk 00:04:22]} {[%emt 00:01:54]} Kg7 {[%clk 00:07:49]} {[%emt
00:00:13]} 23. g4 {[%clk 00:03:33]} {[%emt 00:00:52]} h5 {[%clk 00:07:06]}
{[%emt 00:00:46]} 24. gxh5 {[%clk 00:03:30]} {[%emt 00:00:06]} gxh5 {[%clk
00:07:08]} {[%emt 00:00:02]} 25. Kg2 {[%clk 00:03:29]} {[%emt 00:00:04]} Kg6
{[%clk 00:06:45]} {[%emt 00:00:26]} 26. Kf3 {[%clk 00:03:11]} {[%emt 00:00:21]}
Bg5 {[%clk 00:05:54]} {[%emt 00:00:53]} 27. Rg1 {[%clk 00:03:05]} {[%emt
00:00:09]} Kh6 {[%clk 00:05:53]} {[%emt 00:00:05]} 28. Rgd1 {[%clk 00:02:48]}
{[%emt 00:00:19]} Rcb6 {[%clk 00:05:44]} {[%emt 00:00:12]} 29. Ra1 {[%clk
00:02:29]} {[%emt 00:00:22]} bxc3 {[%clk 00:05:08]} {[%emt 00:00:39]} 30. bxc3
{[%clk 00:02:30]} {[%emt 00:00:02]} Rb2 {[%clk 00:05:10]} {[%emt 00:00:02]} 31.
Ra7 {[%clk 00:02:08]} {[%emt 00:00:25]} R8b7 {[%clk 00:05:04]} {[%emt
00:00:09]} 32. Rxb7 {[%clk 00:02:06]} {[%emt 00:00:05]} Rxb7 {[%clk 00:05:05]}
{[%emt 00:00:02]} 33. Ra1 {[%clk 00:01:58]} {[%emt 00:00:11]} Rb2 {[%clk
00:05:00]} {[%emt 00:00:09]} 34. Ra7 {[%clk 00:01:50]} {[%emt 00:00:10]} Kg6
{[%clk 00:05:01]} {[%emt 00:00:02]} 35. Rc7 {[%clk 00:01:39]} {[%emt 00:00:15]}
Rc2 {[%clk 00:04:59]} {[%emt 00:00:05]} 36. Rc8 {[%clk 00:01:32]} {[%emt
00:00:10]} h4 {[%clk 00:04:50]} {[%emt 00:00:11]} 37. Rg8+ {[%clk 00:01:28]}
{[%emt 00:00:06]} Kf5 {[%clk 00:04:49]} {[%emt 00:00:04]} 38. Rc8 {[%clk
00:01:20]} {[%emt 00:00:10]} f6 {[%clk 00:04:51]} {[%emt 00:00:04]} 39. Rc6
{[%clk 00:01:10]} {[%emt 00:00:12]} e5 {[%clk 00:04:45]} {[%emt 00:00:09]} 40.
dxe5 {[%clk 00:00:56]} {[%emt 00:00:17]} fxe5 {[%clk 00:04:46]} {[%emt
00:00:02]} 41. Ng1 {[%clk 00:00:40]} {[%emt 00:00:19]} e4+ {[%clk 00:04:29]}
{[%emt 00:00:20]} 42. Kg2 {[%clk 00:00:42]} Be3 {[%clk 00:04:27]} {[%emt
00:00:05]} 43. Rc8 {[%clk 00:00:35]} {[%emt 00:00:10]} Rxf2+ {[%clk 00:04:23]}
{[%emt 00:00:06]} 44. Kh1 {[%clk 00:00:38]} Ke6 {[%clk 00:04:04]} {[%emt
00:00:23]} 45. c4 {[%clk 00:00:22]} {[%emt 00:00:20]} Rf1 {[%clk 00:03:13]}
{[%emt 00:00:54]} 46. cxd5+ {[%clk 00:00:19]} {[%emt 00:00:05]} Kxd5 {[%clk
00:03:13]} {[%emt 00:00:03]} 47. Kh2 {[%clk 00:00:14]} {[%emt 00:00:08]} Bxg1+
{[%clk 00:03:05]} {[%emt 00:00:11]} 48. Kg2 {[%clk 00:00:13]} {[%emt 00:00:04]}
Ra1 {[%clk 00:03:04]} {[%emt 00:00:03]} 49. Rd8+ {[%clk 00:00:14]} {[%emt
00:00:03]} Kc4 {[%clk 00:03:06]} {[%emt 00:00:02]} 50. Re8 {[%clk 00:00:11]}
{[%emt 00:00:05]} Kd3 {[%clk 00:03:04]} {[%emt 00:00:04]} 51. Rd8+ {[%clk
00:00:09]} {[%emt 00:00:06]} Bd4 {[%clk 00:03:05]} {[%emt 00:00:02]} 0-1

[Event "4. Memorial Svat.Hastika OPEN"]
[Site "Jesenik, Czech Republic"]
[Date "2022.09.03"]
[Round "3.6"]
[White "Gvizdova, Michala"]
[Black "Taborsky, Bedrich"]
[Result "0-1"]
[TimeControl "720+3"]
[WhiteFideId "23740590"]
[BlackFideId "378151"]
[WhiteElo "1377"]
[BlackElo "1793"]

1. e4 {[%clk 00:12:04]} {[%emt 00:00:02]} g6 {[%clk 00:12:05]} {[%emt
00:00:02]} 2. d4 {[%clk 00:12:04]} {[%emt 00:00:03]} Bg7 {[%clk 00:12:07]} 3.
Nc3 {[%clk 00:12:03]} {[%emt 00:00:05]} b6 {[%clk 00:12:06]} {[%emt 00:00:04]}
4. Nf3 {[%clk 00:11:59]} {[%emt 00:00:07]} Bb7 {[%clk 00:12:08]} 5. Bd3 {[%clk
00:11:49]} {[%emt 00:00:12]} d6 {[%clk 00:12:04]} {[%emt 00:00:07]} 6. b3
{[%clk 00:11:31]} {[%emt 00:00:21]} Nd7 {[%clk 00:12:05]} {[%emt 00:00:02]} 7.
Bb2 {[%clk 00:11:32]} {[%emt 00:00:02]} Ngf6 {[%clk 00:12:00]} {[%emt
00:00:07]} 8. Qe2 {[%clk 00:11:27]} {[%emt 00:00:09]} O-O {[%clk 00:12:01]}
{[%emt 00:00:03]} 9. O-O-O {[%clk 00:11:28]} {[%emt 00:00:01]} a5 {[%clk
00:12:02]} {[%emt 00:00:02]} 10. e5 {[%clk 00:10:59]} {[%emt 00:00:32]} Nd5
{[%clk 00:11:57]} {[%emt 00:00:07]} 11. Nxd5 {[%clk 00:10:59]} {[%emt
00:00:04]} Bxd5 {[%clk 00:11:58]} {[%emt 00:00:02]} 12. exd6 {[%clk 00:10:55]}
{[%emt 00:00:07]} exd6 {[%clk 00:11:54]} {[%emt 00:00:07]} 13. c4 {[%clk
00:10:52]} {[%emt 00:00:07]} Bb7 {[%clk 00:11:50]} {[%emt 00:00:07]} 14. Kb1
{[%clk 00:10:44]} {[%emt 00:00:11]} a4 {[%clk 00:11:53]} {[%emt 00:00:02]} 15.
h4 {[%clk 00:10:42]} {[%emt 00:00:05]} axb3 {[%clk 00:11:53]} {[%emt 00:00:02]}
16. axb3 {[%clk 00:10:43]} {[%emt 00:00:01]} Nf6 {[%clk 00:11:47]} {[%emt
00:00:10]} 17. Ng5 {[%clk 00:10:30]} {[%emt 00:00:16]} Qd7 {[%clk 00:11:47]}
{[%emt 00:00:03]} 18. d5 {[%clk 00:10:14]} {[%emt 00:00:20]} Rfe8 {[%clk
00:11:45]} {[%emt 00:00:04]} 19. Qf3 {[%clk 00:09:53]} {[%emt 00:00:23]} Nh5
{[%clk 00:11:04]} {[%emt 00:00:44]} 20. Bxg7 {[%clk 00:09:50]} {[%emt
00:00:06]} Nxg7 {[%clk 00:11:01]} {[%emt 00:00:06]} 21. g4 {[%clk 00:09:46]}
{[%emt 00:00:07]} Bc8 {[%clk 00:11:01]} {[%emt 00:00:04]} 22. Rdg1 {[%clk
00:09:40]} {[%emt 00:00:09]} Ra3 {[%clk 00:11:01]} {[%emt 00:00:03]} 23. Kb2
{[%clk 00:09:32]} {[%emt 00:00:11]} Ra7 {[%clk 00:11:01]} {[%emt 00:00:03]} 24.
h5 {[%clk 00:09:31]} {[%emt 00:00:04]} h6 {[%clk 00:10:57]} {[%emt 00:00:06]}
25. Ne4 {[%clk 00:09:29]} {[%emt 00:00:05]} Qe7 {[%clk 00:10:51]} {[%emt
00:00:09]} 26. Nf6+ {[%clk 00:09:29]} {[%emt 00:00:04]} Kh8 {[%clk 00:10:50]}
{[%emt 00:00:04]} 27. Nxe8 {[%clk 00:09:30]} {[%emt 00:00:02]} Nxe8 {[%clk
00:10:49]} {[%emt 00:00:04]} 28. hxg6 {[%clk 00:09:25]} {[%emt 00:00:07]} Qe5+
{[%clk 00:10:51]} {[%emt 00:00:02]} 29. Kc2 {[%clk 00:09:15]} {[%emt 00:00:13]}
Ra2+ {[%clk 00:10:52]} {[%emt 00:00:02]} 30. Kc1 {[%clk 00:08:12]} {[%emt
00:01:07]} Qb2+ {[%clk 00:10:52]} {[%emt 00:00:02]} 31. Kd1 {[%clk 00:08:03]}
{[%emt 00:00:12]} Qd2# {[%clk 00:10:50]} 0-1

[Event "4. Memorial Svat.Hastika OPEN"]
[Site "Jesenik, Czech Republic"]
[Date "2022.09.03"]
[Round "3.7"]
[White "Kincl, Dobromir"]
[Black "Zrubek, Dan"]
[Result "0-1"]
[TimeControl "720+3"]
[BlackFideId "23718714"]
[WhiteElo "1683"]
[BlackElo "1504"]

1. d4 {[%clk 00:12:04]} d5 {[%clk 00:12:05]} {[%emt 00:00:02]} 2. c4 {[%clk
00:12:06]} {[%emt 00:00:01]} Nc6 {[%clk 00:12:07]} 3. cxd5 {[%clk 00:12:05]}
{[%emt 00:00:04]} Qxd5 {[%clk 00:12:08]} {[%emt 00:00:02]} 4. Nf3 {[%clk
00:12:00]} {[%emt 00:00:07]} e5 {[%clk 00:12:05]} {[%emt 00:00:07]} 5. Nc3
{[%clk 00:12:01]} {[%emt 00:00:02]} Bb4 {[%clk 00:12:06]} {[%emt 00:00:02]} 6.
a3 {[%clk 00:11:41]} {[%emt 00:00:23]} Bxc3+ {[%clk 00:11:39]} {[%emt
00:00:31]} 7. bxc3 {[%clk 00:11:42]} {[%emt 00:00:02]} Bg4 {[%clk 00:11:31]}
{[%emt 00:00:11]} 8. Bb2 {[%clk 00:08:53]} {[%emt 00:02:52]} O-O-O {[%clk
00:10:30]} {[%emt 00:01:04]} 9. Qa4 {[%clk 00:08:10]} {[%emt 00:00:45]} Bxf3
{[%clk 00:09:47]} {[%emt 00:00:46]} 10. gxf3 {[%clk 00:07:12]} {[%emt
00:01:01]} Nf6 {[%clk 00:08:24]} {[%emt 00:01:26]} 11. e4 {[%clk 00:06:09]}
{[%emt 00:01:05]} Nxe4 {[%clk 00:06:55]} {[%emt 00:01:33]} 12. fxe4 {[%clk
00:06:09]} {[%emt 00:00:03]} Qxe4+ {[%clk 00:06:56]} {[%emt 00:00:02]} 13. Kd2
{[%clk 00:06:06]} {[%emt 00:00:06]} exd4 {[%clk 00:06:24]} {[%emt 00:00:35]} 14.
cxd4 {[%clk 00:05:53]} {[%emt 00:00:15]} Nxd4 {[%clk 00:06:16]} {[%emt
00:00:11]} 15. Bd3 {[%clk 00:04:42]} {[%emt 00:01:14]} Nf3+ {[%emt 00:00:32]}
0-1

[Event "4. Memorial Svat.Hastika OPEN"]
[Site "Jesenik, Czech Republic"]
[Date "2022.09.03"]
[Round "3.8"]
[White "Zrubek, Adam"]
[Black "Ondrackova, Veronika"]
[Result "1-0"]
[TimeControl "720+3"]
[WhiteFideId "23718706"]
[BlackFideId "23739983"]
[WhiteElo "1583"]
[BlackElo "1213"]

1. e4 {[%clk 00:12:04]} {[%emt 00:00:02]} d5 {[%clk 00:12:05]} {[%emt
00:00:02]} 2. exd5 {[%clk 00:12:06]} {[%emt 00:00:01]} Nf6 {[%clk 00:12:07]}
{[%emt 00:00:01]} 3. d4 {[%clk 00:12:05]} {[%emt 00:00:04]} Nxd5 {[%clk
00:12:09]} {[%emt 00:00:02]} 4. c4 {[%clk 00:12:06]} {[%emt 00:00:02]} Nf6
{[%emt 00:00:08]} 5. Nc3 {[%clk 00:12:03]} {[%emt 00:00:05]} Bf5 {[%clk
00:12:00]} {[%emt 00:00:08]} 6. Nf3 {[%clk 00:11:54]} {[%emt 00:00:11]} e6
{[%clk 00:11:58]} {[%emt 00:00:05]} 7. Bd3 {[%clk 00:11:43]} {[%emt 00:00:15]}
Bg6 {[%clk 00:11:50]} {[%emt 00:00:11]} 8. O-O {[%clk 00:11:40]} {[%emt
00:00:05]} Nc6 {[%clk 00:11:20]} {[%emt 00:00:33]} 9. Bb1 {[%clk 00:10:56]}
{[%emt 00:00:47]} Qd7 {[%clk 00:10:18]} {[%emt 00:01:06]} 10. a3 {[%clk
00:10:32]} {[%emt 00:00:26]} Be7 {[%clk 00:08:04]} {[%emt 00:02:17]} 11. b4
{[%clk 00:10:13]} {[%emt 00:00:22]} Rd8 {[%clk 00:07:24]} {[%emt 00:00:43]} 12.
Be3 {[%clk 00:09:42]} {[%emt 00:00:34]} O-O {[%clk 00:07:01]} {[%emt 00:00:27]}
13. Qa4 {[%clk 00:08:06]} {[%emt 00:01:39]} a6 {[%clk 00:04:50]} {[%emt
00:02:14]} 14. Rd1 {[%clk 00:07:32]} {[%emt 00:00:36]} Nb8 {[%clk 00:04:02]}
{[%emt 00:00:52]} 15. Qb3 {[%clk 00:07:16]} {[%emt 00:00:18]} c6 {[%clk
00:03:17]} {[%emt 00:00:49]} 16. Ne5 {[%clk 00:06:50]} {[%emt 00:00:29]} Qc7
{[%clk 00:03:03]} {[%emt 00:00:16]} 17. Ne2 {[%clk 00:03:37]} {[%emt 00:03:16]}
Nbd7 {[%clk 00:02:03]} {[%emt 00:01:04]} 18. Bf4 {[%clk 00:01:54]} {[%emt
00:01:46]} Nh5 {[%clk 00:00:55]} {[%emt 00:01:10]} 19. Nxg6 {[%clk 00:01:18]}
{[%emt 00:00:39]} Nxf4 {[%emt 00:00:19]} 20. Ngxf4 {[%clk 00:00:57]} {[%emt
00:00:22]} Nf6 {[%emt 00:00:22]} 21. Qh3 {[%clk 00:00:08]} {[%emt 00:00:48]} h6
{[%clk 00:00:17]} {[%emt 00:00:13]} 22. Nh5 {[%clk 00:00:05]} {[%emt 00:00:06]}
Nxh5 {[%clk 00:00:10]} {[%emt 00:00:09]} 23. Qxh5 {[%clk 00:00:07]} {[%emt
00:00:02]} Bf6 {[%clk 00:00:10]} {[%emt 00:00:03]} 24. Bc2 {[%clk 00:00:05]}
{[%emt 00:00:04]} Qd7 {[%clk 00:00:10]} {[%emt 00:00:03]} 25. Qg4 {[%clk
00:00:05]} {[%emt 00:00:03]} Bg5 {[%clk 00:00:10]} {[%emt 00:00:03]} 26. f4
{[%clk 00:00:05]} {[%emt 00:00:03]} Bf6 {[%clk 00:00:12]} {[%emt 00:00:01]} 27.
Rd3 {[%clk 00:00:05]} {[%emt 00:00:03]} Qe7 {[%clk 00:00:11]} {[%emt 00:00:04]}
28. Ng3 {[%clk 00:00:05]} {[%emt 00:00:04]} Kh7 {[%clk 00:00:09]} {[%emt
00:00:05]} 29. Rad1 {[%clk 00:00:06]} {[%emt 00:00:02]} Bh4 {[%clk 00:00:07]}
{[%emt 00:00:04]} 30. Ne2 {[%clk 00:00:04]} {[%emt 00:00:05]} Bf6 {[%clk
00:00:09]} {[%emt 00:00:01]} 31. Rg3+ {[%clk 00:00:05]} {[%emt 00:00:02]} g6
{[%clk 00:00:10]} {[%emt 00:00:49]} 32. Rgd3 {[%clk 00:00:42]} {[%emt
00:01:25]} Rg8 {[%clk 00:00:11]} {[%emt 00:00:03]} 33. Ng3 {[%clk 00:00:39]}
{[%emt 00:00:06]} Qf8 {[%clk 00:00:10]} {[%emt 00:00:05]} 34. Ne4 {[%clk
00:00:34]} {[%emt 00:00:07]} Qg7 {[%clk 00:00:10]} {[%emt 00:00:03]} 35. Kh1
{[%clk 00:00:10]} {[%emt 00:00:27]} Bxd4 {[%clk 00:00:08]} {[%emt 00:00:05]} 36.
Ng5+ {[%clk 00:00:06]} {[%emt 00:00:07]} hxg5 {[%clk 00:00:06]} {[%emt
00:00:04]} 37. Rh3+ {[%clk 00:00:08]} Qh6 {[%clk 00:00:06]} {[%emt 00:00:05]}
38. Rxh6+ {[%clk 00:00:10]} Kxh6 {[%emt 00:00:03]} 39. fxg5+ {[%clk 00:00:11]}
Kg7 {[%clk 00:00:08]} {[%emt 00:00:02]} 40. Rxd4 {[%clk 00:00:13]} {[%emt
00:00:01]} 1-0

[Event "4. Memorial Svat.Hastika OPEN"]
[Site "Jesenik, Czech Republic"]
[Date "2022.09.03"]
[Round "3.10"]
[White "Cechacek, Miroslav"]
[Black "Pobucky, Ondrej"]
[Result "1-0"]
[TimeControl "720+3"]
[WhiteFideId "377090"]
[BlackFideId "23742305"]
[WhiteElo "1541"]
[BlackElo "1426"]

1. e4 {[%clk 00:12:04]} {[%emt 00:00:02]} e5 {[%clk 00:12:05]} {[%emt
00:00:02]} 2. f4 {[%clk 00:12:05]} {[%emt 00:00:01]} exf4 {[%clk 00:12:06]}
{[%emt 00:00:03]} 3. Nf3 {[%clk 00:12:07]} Nc6 {[%clk 00:12:00]} {[%emt
00:00:10]} 4. Bc4 {[%clk 00:12:08]} {[%emt 00:00:02]} Bd6 {[%clk 00:11:52]}
{[%emt 00:00:12]} 5. O-O {[%clk 00:12:06]} {[%emt 00:00:04]} Nf6 {[%clk
00:11:51]} {[%emt 00:00:03]} 6. Nc3 {[%clk 00:12:08]} {[%emt 00:00:02]} O-O
{[%clk 00:11:51]} {[%emt 00:00:03]} 7. d4 {[%clk 00:12:05]} {[%emt 00:00:06]}
Bb4 {[%clk 00:11:35]} {[%emt 00:00:18]} 8. e5 {[%clk 00:11:28]} {[%emt
00:00:40]} Bxc3 {[%clk 00:11:20]} {[%emt 00:00:19]} 9. exf6 {[%clk 00:11:27]}
{[%emt 00:00:04]} Qxf6 {[%clk 00:11:15]} {[%emt 00:00:07]} 10. bxc3 {[%clk
00:11:28]} {[%emt 00:00:03]} d6 {[%clk 00:10:59]} {[%emt 00:00:20]} 11. h3
{[%clk 00:11:04]} {[%emt 00:00:26]} Qg6 {[%clk 00:10:50]} {[%emt 00:00:11]} 12.
Nh2 {[%clk 00:10:21]} {[%emt 00:00:46]} Bxh3 {[%clk 00:00:00]} {[%emt
00:01:05]} 13. Rf2 {[%clk 00:00:00]} {[%emt 00:00:25]} Be6 {[%clk 00:12:22]}
{[%emt 00:00:35]} 14. Bd3 {[%clk 00:10:14]} {[%emt 00:00:05]} Bf5 {[%clk
00:12:11]} {[%emt 00:00:14]} 15. Rxf4 {[%clk 00:10:15]} {[%emt 00:00:02]} Bxd3
{[%clk 00:12:09]} {[%emt 00:00:05]} 16. Qxd3 {[%clk 00:10:16]} {[%emt
00:00:02]} Qxd3 {[%clk 00:12:10]} {[%emt 00:00:02]} 17. cxd3 {[%clk 00:10:18]}
{[%emt 00:00:01]} Rfe8 {[%clk 00:11:37]} {[%emt 00:00:35]} 18. Re4 {[%clk
00:10:18]} {[%emt 00:00:02]} Rec8 {[%clk 00:11:24]} {[%emt 00:00:17]} 19. Bf4
{[%clk 00:10:10]} {[%emt 00:00:12]} h6 {[%clk 00:11:05]} {[%emt 00:00:22]} 20.
Rae1 {[%clk 00:10:10]} {[%emt 00:00:02]} Kh7 {[%clk 00:11:05]} {[%emt
00:00:03]} 21. d5 {[%clk 00:10:07]} {[%emt 00:00:07]} Na5 {[%clk 00:10:57]}
{[%emt 00:00:11]} 22. Re7 {[%clk 00:10:04]} {[%emt 00:00:05]} f6 {[%clk
00:10:51]} {[%emt 00:00:10]} 23. Rd7 {[%clk 00:10:04]} {[%emt 00:00:02]} b6
{[%clk 00:10:41]} {[%emt 00:00:14]} 24. Ree7 {[%clk 00:10:05]} {[%emt
00:00:02]} Rg8 {[%clk 00:10:42]} {[%emt 00:00:02]} 25. Rxc7 {[%clk 00:10:03]}
{[%emt 00:00:05]} Kg6 {[%clk 00:10:33]} {[%emt 00:00:11]} 26. Bxd6 {[%clk
00:10:01]} {[%emt 00:00:05]} Rad8 {[%clk 00:10:31]} {[%emt 00:00:06]} 27. Red7
{[%clk 00:10:01]} {[%emt 00:00:02]} Rde8 {[%clk 00:10:23]} {[%emt 00:00:11]} 28.
Kf2 {[%clk 00:09:30]} {[%emt 00:00:34]} Rc8 {[%clk 00:10:00]} {[%emt 00:00:27]}
29. Nf3 {[%clk 00:09:20]} {[%emt 00:00:12]} Rxc7 {[%clk 00:09:55]} {[%emt
00:00:08]} 30. Bxc7 {[%clk 00:09:16]} {[%emt 00:00:07]} Rc8 {[%clk 00:09:55]}
{[%emt 00:00:03]} 31. Nh4+ {[%clk 00:09:06]} {[%emt 00:00:12]} Kg5 {[%clk
00:09:54]} {[%emt 00:00:04]} 32. g3 {[%clk 00:09:07]} {[%emt 00:00:02]} Rg8
{[%clk 00:09:12]} {[%emt 00:00:44]} 33. Bf4+ {[%clk 00:08:57]} {[%emt
00:00:13]} Kg4 {[%clk 00:08:59]} {[%emt 00:00:17]} 34. Ng2 {[%clk 00:08:25]}
{[%emt 00:00:31]} g5 {[%clk 00:08:48]} {[%emt 00:00:18]} 35. Ne3+ {[%clk
00:08:25]} {[%emt 00:00:03]} Kh3 {[%clk 00:08:41]} {[%emt 00:00:09]} 36. Rh7
{[%clk 00:08:12]} {[%emt 00:00:16]} Rg6 {[%clk 00:08:34]} {[%emt 00:00:11]} 37.
Bb8 {[%clk 00:07:50]} {[%emt 00:00:24]} f5 {[%clk 00:08:22]} {[%emt 00:00:15]}
38. Nxf5 {[%clk 00:07:51]} {[%emt 00:00:02]} Rf6 {[%clk 00:08:23]} {[%emt
00:00:03]} 39. Rxh6+ {[%clk 00:07:41]} {[%emt 00:00:12]} Rxh6 {[%clk 00:08:25]}
{[%emt 00:00:01]} 40. Nxh6 {[%clk 00:07:43]} {[%emt 00:00:01]} g4 {[%clk
00:08:20]} {[%emt 00:00:08]} 41. Bxa7 {[%clk 00:07:32]} {[%emt 00:00:14]} b5
{[%clk 00:08:20]} {[%emt 00:00:03]} 42. Bb6 {[%clk 00:07:18]} {[%emt 00:00:17]}
Nb7 {[%clk 00:08:22]} {[%emt 00:00:01]} 43. Nf7 {[%clk 00:07:11]} {[%emt
00:00:11]} Kh2 {[%clk 00:07:35]} {[%emt 00:00:49]} 44. d6 {[%clk 00:07:11]}
{[%emt 00:00:02]} 1-0

[Event "4. Memorial Svat.Hastika OPEN"]
[Site "Jesenik, Czech Republic"]
[Date "2022.09.03"]
[Round "4.1"]
[White "Banasik, Krzysztof"]
[Black "Wrobel, Maciej"]
[Result "1-0"]
[TimeControl "720+3"]
[WhiteFideId "1125222"]
[BlackFideId "1181351"]
[WhiteElo "2166"]
[BlackElo "1873"]

1. e4 {[%clk 00:12:05]} {[%emt 00:00:01]} d5 {[%clk 00:12:05]} 2. exd5 {[%clk
00:12:06]} {[%emt 00:00:02]} Qxd5 {[%clk 00:12:07]} 3. Nc3 {[%clk 00:12:06]}
{[%emt 00:00:03]} Qd8 {[%clk 00:12:07]} {[%emt 00:00:03]} 4. d4 {[%clk
00:12:06]} {[%emt 00:00:04]} g6 {[%clk 00:12:09]} {[%emt 00:00:02]} 5. Bc4
{[%clk 00:12:06]} {[%emt 00:00:02]} Bg7 {[%clk 00:12:11]} {[%emt 00:00:02]} 6.
Nf3 {[%clk 00:12:07]} {[%emt 00:00:02]} Nf6 {[%clk 00:12:12]} {[%emt 00:00:02]}
7. h3 {[%clk 00:12:03]} {[%emt 00:00:07]} O-O {[%clk 00:12:12]} {[%emt
00:00:02]} 8. O-O {[%clk 00:12:03]} {[%emt 00:00:03]} b6 {[%clk 00:12:15]} 9.
Bf4 {[%clk 00:11:51]} {[%emt 00:00:15]} Ba6 {[%clk 00:12:10]} {[%emt 00:00:07]}
10. Bxa6 {[%clk 00:11:45]} {[%emt 00:00:10]} Nxa6 {[%clk 00:12:11]} {[%emt
00:00:01]} 11. Re1 {[%clk 00:11:46]} {[%emt 00:00:02]} Nb4 {[%clk 00:12:03]}
{[%emt 00:00:12]} 12. Be5 {[%clk 00:11:34]} {[%emt 00:00:16]} Nfd5 {[%clk
00:12:00]} {[%emt 00:00:06]} 13. Bxg7 {[%clk 00:11:32]} {[%emt 00:00:04]} Kxg7
{[%clk 00:12:01]} {[%emt 00:00:03]} 14. Ne4 {[%clk 00:11:31]} {[%emt 00:00:03]}
f5 {[%clk 00:11:57]} {[%emt 00:00:08]} 15. Neg5 {[%clk 00:11:30]} {[%emt
00:00:04]} h6 {[%clk 00:11:55]} {[%emt 00:00:04]} 16. Ne6+ {[%clk 00:11:32]}
{[%emt 00:00:02]} 1-0